fUSD/lending_fUSD_20260615
["ID","MTS","AMOUNT","RATE_DAILY","PERIOD"]
[425090489,1781481041000,-10000.0,0.00015062,2]
[425090491,1781481041000,-714.74,0.00015093,2]
[425090490,1781481041000,-150.0,0.00015068,2]
[425090492,1781481041000,-1613.0535,0.00015098,2]
[425090494,1781481041000,-6111.0,0.0001514,2]
[425090493,1781481041000,-151.0,0.00015114,2]
[425090496,1781481041000,-700.0,0.00015164,2]
[425090495,1781481041000,-151.0,0.00015157,2]
[425090498,1781481041000,-10083.99278242,0.000152,2]
[425090501,1781481041000,-10083.99278242,0.000153,2]
[425090503,1781481041000,-5103.57792136,0.00015326,2]
[425090499,1781481041000,-10000.0,0.00015268,2]
[425090500,1781481041000,-15000.0,0.00015273,2]
[425090497,1781481041000,-920.07,0.00015191,2]
[425090504,1781481041000,-10000.0,0.00015334,2]
[425090505,1781481041000,-255.86922144,0.00015342,2]
[425090506,1781481041000,-350.0,0.00015431,2]
[425090509,1781481041000,-8284.86,0.00015464,2]
[425090508,1781481041000,-558.41,0.00015464,2]
[425090507,1781481041000,-2862.54,0.00015464,2]
[425090455,1781481041000,-500.0,0.00014999,2]
[425090484,1781481041000,-309.0,0.00015,2]
[425090487,1781481041000,-300.0,0.0001505,2]
[425090502,1781481041000,-500.0,0.00015315,2]
[425090479,1781481041000,-559.0,0.00015,2]
[425090457,1781481041000,-500.0,0.00014999,2]
[425090488,1781481041000,-45851.01090955,0.00015051,2]
[425090464,1781481041000,-500.0,0.00014999,2]
[425090462,1781481041000,-500.0,0.00014999,2]
[425090460,1781481041000,-500.0,0.00014999,2]
[425090463,1781481041000,-500.0,0.00014999,2]
[425090461,1781481041000,-500.0,0.00014999,2]
[425090466,1781481041000,-500.0,0.00014999,2]
[425090467,1781481041000,-500.0,0.00014999,2]
[425090468,1781481041000,-500.0,0.00014999,2]
[425090473,1781481041000,-305.7923171,0.00014999,2]
[425090477,1781481041000,-10083.99278242,0.00015,2]
[425090465,1781481041000,-500.0,0.00014999,2]
[425090482,1781481041000,-412.68712,0.00015,2]
[425090485,1781481041000,-852.1392965,0.00015,2]
[425090476,1781481041000,-348.79535005,0.00015,2]
[425090480,1781481041000,-711.66622303,0.00015,2]
[425090478,1781481041000,-1594.67,0.00015,2]
[425090474,1781481041000,-300.0,0.00014999,2]
[425090481,1781481041000,-412.68712,0.00015,2]
[425090471,1781481041000,-500.0,0.00014999,2]
[425090475,1781481041000,-8811459.59630842,0.00015,2]
[425090472,1781481041000,-500.0,0.00014999,2]
[425090469,1781481041000,-500.0,0.00014999,2]
[425090470,1781481041000,-500.0,0.00014999,2]
[425090543,1781481042000,-350.0,0.00016412,3]
[425090548,1781481042000,-300.01,0.000165,2]
[425090549,1781481042000,-1594.67,0.000165,2]
[425090547,1781481042000,-264.63749367,0.00016483,2]
[425090541,1781481042000,-350.0,0.00016206,2]
[425090546,1781481042000,-152.0,0.00016438,2]
[425090545,1781481042000,-263.36,0.00016438,2]
[425090544,1781481042000,-1076.3,0.00016438,2]
[425090539,1781481042000,-10083.99278242,0.000162,2]
[425090551,1781481042000,-10083.99278242,0.000166,2]
[425090537,1781481042000,-351.211156,0.00016187,7]
[425090553,1781481042000,-274.21943457,0.000167,2]
[425090560,1781481042000,-206.709232,0.00017054,7]
[425090554,1781481042000,-920.07,0.0001671,2]
[425090557,1781481042000,-10083.99278242,0.000169,2]
[425090552,1781481042000,-10083.99278242,0.000167,2]
[425090555,1781481042000,-168.44,0.00016712,2]
[425090556,1781481042000,-1798.80895522,0.00016742,2]
[425090558,1781481042000,-163.31,0.00016924,2]
[425090559,1781481042000,-177.42,0.00017,2]
[425090565,1781481042000,-157.0,0.00017148,2]
[425090562,1781481042000,-10083.99278242,0.000171,2]
[425090561,1781481042000,-253.78,0.00017078,2]
[425090542,1781481042000,-10083.99278242,0.000164,2]
[425090550,1781481042000,-246.4068196,0.00016581,2]
[425090540,1781481042000,-512.61,0.000162,2]
[425090510,1781481042000,-10083.99278242,0.000155,2]
[425090532,1781481042000,-518.89014429,0.00016096,2]
[425090511,1781481042000,-253.78,0.00015526,2]
[425090514,1781481042000,-150.0,0.00015645,2]
[425090512,1781481042000,-10083.99278242,0.000156,2]
[425090513,1781481042000,-250.0,0.00015645,2]
[425090516,1781481042000,-150.0,0.00015645,2]
[425090515,1781481042000,-150.0,0.00015645,2]
[425090522,1781481042000,-10083.99278242,0.000158,2]
[425090517,1781481042000,-189.0,0.00015645,2]
[425090523,1781481042000,-350.0,0.00015852,2]
[425090525,1781481042000,-10083.99278242,0.000159,2]
[425090519,1781481042000,-1672.7364795,0.00015646,2]
[425090521,1781481042000,-350.0,0.00015677,3]
[425090520,1781481042000,-176.57,0.00015652,2]
[425090518,1781481042000,-150.317,0.00015645,2]
[425090524,1781481042000,-151.0,0.00015873,2]
[425090527,1781481042000,-300.0,0.00016,2]
[425090535,1781481042000,-2000.0,0.00016158,2]
[425090528,1781481042000,-200.0,0.00016,2]
[425090526,1781481042000,-150.0,0.00016,2]
[425090536,1781481042000,-170.01,0.00016177,2]
[425090533,1781481042000,-10083.99278242,0.000161,2]
[425090530,1781481042000,-2362.2948834,0.00016039,2]
[425090529,1781481042000,-353.9717892,0.00016,2]
[425090534,1781481042000,-500.0,0.00016158,2]
[425090531,1781481042000,-500.0,0.00016096,2]
[425090538,1781481042000,-1734.62772924,0.00016194,2]
[425090563,1781481042000,-152.0,0.00017148,2]
[425090569,1781481042000,-1877.0,0.00017148,2]
[425090567,1781481042000,-263.0,0.00017148,2]
[425090604,1781481042000,-10083.99278242,0.000181,2]
[425090601,1781481042000,-350.0,0.00018,2]
[425090602,1781481042000,-200.0,0.00018,2]
[425090596,1781481042000,-631.0,0.00017995,2]
[425090597,1781481042000,-419.0,0.00017995,2]
[425090603,1781481042000,-1073.7,0.00018082,2]
[425090600,1781481042000,-1594.67,0.00018,2]
[425090599,1781481042000,-170.63172329,0.00017995,2]
[425090606,1781481042000,-448.0,0.00018148,2]
[425090617,1781481042000,-264.63749367,0.00018167,2]
[425090605,1781481042000,-152.0,0.00018148,2]
[425090608,1781481042000,-232.0,0.00018148,2]
[425090607,1781481042000,-157.0,0.00018148,2]
[425090609,1781481042000,-263.0,0.00018148,2]
[425090610,1781481042000,-607.0,0.00018148,2]
[425090613,1781481042000,-183.0,0.00018148,2]
[425090615,1781481042000,-159.0,0.00018148,2]
[425090612,1781481042000,-222.0,0.00018148,2]
[425090611,1781481042000,-1877.0,0.00018148,2]
[425090614,1781481042000,-408.0,0.00018148,2]
[425090619,1781481042000,-333.645987,0.00018246,7]
[425090620,1781481042000,-10083.99278242,0.000183,2]
[425090618,1781481042000,-920.07,0.00018229,2]
[425090621,1781481042000,-300.0,0.00018377,2]
[425090566,1781481042000,-232.0,0.00017148,2]
[425090594,1781481042000,-383.0,0.00017995,2]
[425090595,1781481042000,-1228.0,0.00017995,2]
[425090616,1781481042000,-260.0,0.00018148,2]
[425090593,1781481042000,-1275.0,0.00017995,2]
[425090564,1781481042000,-448.0,0.00017148,2]
[425090598,1781481042000,-6077.0,0.00017995,2]
[425090568,1781481042000,-607.0,0.00017148,2]
[425090570,1781481042000,-222.0,0.00017148,2]
[425090574,1781481042000,-260.0,0.00017148,2]
[425090571,1781481042000,-183.0,0.00017148,2]
[425090575,1781481042000,-165.22766989,0.0001717,2]
[425090572,1781481042000,-408.0,0.00017148,2]
[425090577,1781481042000,-10083.99278242,0.000172,2]
[425090573,1781481042000,-159.0,0.00017148,2]
[425090578,1781481042000,-1865.36488656,0.0001729,2]
[425090579,1781481042000,-10083.99278242,0.000174,2]
[425090592,1781481042000,-1359.0,0.00017995,2]
[425090576,1781481042000,-182.737865,0.0001718,2]
[425090591,1781481042000,-10083.99278242,0.000179,2]
[425090586,1781481042000,-182.737867,0.00017696,2]
[425090581,1781481042000,-891.21,0.00017572,2]
[425090588,1781481042000,-10083.99278242,0.000178,2]
[425090589,1781481042000,-1934.38338736,0.00017837,2]
[425090590,1781481042000,-343.69,0.00017865,2]
[425090587,1781481042000,-305.4,0.00017793,2]
[425090585,1781481042000,-331.57,0.00017644,2]
[425090583,1781481042000,-151.0,0.00017577,2]
[425090582,1781481042000,-151.92,0.00017576,2]
[425090580,1781481042000,-182.737865,0.00017438,2]
[425090584,1781481042000,-10083.99278242,0.000176,2]
[425090668,1781481043000,-151.0,0.00018934,2]
[425090658,1781481043000,-151.0,0.00018934,2]
[425090659,1781481043000,-1481.2378076,0.00018934,2]
[425090660,1781481043000,-578.20924308,0.00018934,2]
[425090657,1781481043000,-1428.38747117,0.00018934,2]
[425090665,1781481043000,-154.62503566,0.00018934,2]
[425090663,1781481043000,-1536.04360648,0.00018934,2]
[425090661,1781481043000,-357.96077372,0.00018934,2]
[425090667,1781481043000,-1592.87721992,0.00018934,2]
[425090664,1781481043000,-151.0,0.00018934,2]
[425090662,1781481043000,-151.0,0.00018934,2]
[425090666,1781481043000,-209.40437684,0.00018934,2]
[425090680,1781481043000,-500.0,0.00018934,2]
[425090670,1781481043000,-151.0,0.00018934,2]
[425090672,1781481043000,-500.0,0.00018934,2]
[425090671,1781481043000,-151.0,0.00018934,2]
[425090675,1781481043000,-500.0,0.00018934,2]
[425090677,1781481043000,-151.0,0.00018934,2]
[425090674,1781481043000,-500.0,0.00018934,2]
[425090673,1781481043000,-151.0,0.00018934,2]
[425090676,1781481043000,-721.12765534,0.00018934,2]
[425090678,1781481043000,-151.0,0.00018934,2]
[425090681,1781481043000,-151.0,0.00018934,2]
[425090649,1781481043000,-1191.11104074,0.00018934,2]
[425090669,1781481043000,-693.8035842,0.00018934,2]
[425090655,1781481043000,-174.61919141,0.00018934,2]
[425090627,1781481043000,-209.8814222,0.000184,2]
[425090656,1781481043000,-1377.42282658,0.00018934,2]
[425090679,1781481043000,-152.0,0.00018934,2]
[425090624,1781481043000,-2005.9555727,0.00018386,2]
[425090622,1781481043000,-141131.4103259,0.00018378,2]
[425090629,1781481043000,-1076.3,0.0001841,2]
[425090631,1781481043000,-331.57,0.00018475,2]
[425090634,1781481043000,-10083.99278242,0.000185,2]
[425090633,1781481043000,-1290.81,0.000185,2]
[425090636,1781481043000,-150.0,0.00018645,2]
[425090635,1781481043000,-253.78,0.00018631,2]
[425090639,1781481043000,-150.0,0.00018645,2]
[425090637,1781481043000,-150.0,0.00018645,2]
[425090640,1781481043000,-10083.99278242,0.000187,2]
[425090644,1781481043000,-1038.31,0.00018904,2]
[425090638,1781481043000,-150.0,0.00018645,2]
[425090641,1781481043000,-331.57,0.00018819,2]
[425090642,1781481043000,-500.0,0.00018836,7]
[425090643,1781481043000,-305.4,0.00018875,2]
[425090645,1781481043000,-1030.0,0.00018934,2]
[425090648,1781481043000,-1148.61238259,0.00018934,2]
[425090651,1781481043000,-1235.18214925,0.00018934,2]
[425090647,1781481043000,-1107.63007,0.00018934,2]
[425090646,1781481043000,-1068.11,0.00018934,2]
[425090653,1781481043000,-469.83697307,0.00018934,2]
[425090650,1781481043000,-200.0,0.00018934,2]
[425090652,1781481043000,-1280.88388877,0.00018934,2]
[425090654,1781481043000,-1328.27659266,0.00018934,2]
[425090685,1781481043000,-209.40437684,0.00018934,2]
[425090626,1781481043000,-679.41341252,0.000184,2]
[425090686,1781481043000,-151.0,0.00018934,2]
[425090715,1781481043000,-151.0,0.00018934,2]
[425090714,1781481043000,-151.0,0.00018934,2]
[425090717,1781481043000,-500.0,0.00018934,2]
[425090723,1781481043000,-151.0,0.00018934,2]
[425090719,1781481043000,-151.0,0.00018934,2]
[425090716,1781481043000,-152.0,0.00018934,2]
[425090718,1781481043000,-151.0,0.00018934,2]
[425090722,1781481043000,-151.0,0.00018934,2]
[425090721,1781481043000,-152.0,0.00018934,2]
[425090720,1781481043000,-500.0,0.00018934,2]
[425090724,1781481043000,-500.0,0.00018934,2]
[425090730,1781481043000,-151.0,0.00018934,2]
[425090725,1781481043000,-152.0,0.00018934,2]
[425090726,1781481043000,-151.0,0.00018934,2]
[425090733,1781481043000,-151.0,0.00018934,2]
[425090729,1781481043000,-152.0,0.00018934,2]
[425090731,1781481043000,-500.0,0.00018934,2]
[425090732,1781481043000,-151.0,0.00018934,2]
[425090734,1781481043000,-152.0,0.00018934,2]
[425090728,1781481043000,-151.0,0.00018934,2]
[425090727,1781481043000,-500.0,0.00018934,2]
[425090735,1781481043000,-500.0,0.00018934,2]
[425090737,1781481043000,-151.0,0.00018934,2]
[425090690,1781481043000,-151.0,0.00018934,2]
[425090738,1781481043000,-151.0,0.00018934,2]
[425090712,1781481043000,-152.0,0.00018934,2]
[425090707,1781481043000,-500.0,0.00018934,2]
[425090736,1781481043000,-151.0,0.00018934,2]
[425090713,1781481043000,-500.0,0.00018934,2]
[425090708,1781481043000,-500.0,0.00018934,2]
[425090684,1781481043000,-2080.17592889,0.00018934,2]
[425090687,1781481043000,-500.0,0.00018934,2]
[425090688,1781481043000,-152.0,0.00018934,2]
[425090682,1781481043000,-151.0,0.00018934,2]
[425090683,1781481043000,-151.0,0.00018934,2]
[425090701,1781481043000,-152.0,0.00018934,2]
[425090700,1781481043000,-151.0,0.00018934,2]
[425090692,1781481043000,-500.0,0.00018934,2]
[425090691,1781481043000,-500.0,0.00018934,2]
[425090693,1781481043000,-151.0,0.00018934,2]
[425090695,1781481043000,-152.0,0.00018934,2]
[425090689,1781481043000,-209.40437684,0.00018934,2]
[425090694,1781481043000,-151.0,0.00018934,2]
[425090703,1781481043000,-151.0,0.00018934,2]
[425090711,1781481043000,-500.0,0.00018934,2]
[425090709,1781481043000,-151.0,0.00018934,2]
[425090697,1781481043000,-500.0,0.00018934,2]
[425090710,1781481043000,-151.0,0.00018934,2]
[425090705,1781481043000,-151.0,0.00018934,2]
[425090704,1781481043000,-500.0,0.00018934,2]
[425090702,1781481043000,-500.0,0.00018934,2]
[425090699,1781481043000,-500.0,0.00018934,2]
[425090696,1781481043000,-500.0,0.00018934,2]
[425090698,1781481043000,-151.0,0.00018934,2]
[425090706,1781481043000,-152.0,0.00018934,2]
[425090775,1781481044000,-151.0,0.00019373,2]
[425090778,1781481044000,-151.0,0.00019429,2]
[425090777,1781481044000,-357.96077372,0.00019429,2]
[425090773,1781481044000,-305.4,0.00019323,2]
[425090764,1781481044000,-151.0,0.00019209,2]
[425090771,1781481044000,-357.96077372,0.00019319,2]
[425090772,1781481044000,-151.0,0.00019319,2]
[425090769,1781481044000,-331.57,0.00019305,2]
[425090767,1781481044000,-357.96077372,0.00019264,2]
[425090770,1781481044000,-206.7895552,0.00019318,2]
[425090776,1781481044000,-343.69,0.000194,2]
[425090789,1781481044000,-357.96077386,0.00019483,2]
[425090781,1781481044000,-181.08010149,0.00019481,2]
[425090779,1781481044000,-200.0,0.00019481,2]
[425090782,1781481044000,-154.62503566,0.00019481,2]
[425090784,1781481044000,-151.0,0.00019481,2]
[425090783,1781481044000,-217.15233878,0.00019481,2]
[425090786,1781481044000,-151.0,0.00019481,2]
[425090787,1781481044000,-2157.14243826,0.00019481,2]
[425090788,1781481044000,-217.15233878,0.00019481,2]
[425090780,1781481044000,-469.83697307,0.00019481,2]
[425090785,1781481044000,-151.0,0.00019481,2]
[425090766,1781481044000,-6705.42,0.00019245,2]
[425090774,1781481044000,-357.96077372,0.00019373,2]
[425090768,1781481044000,-151.0,0.00019264,2]
[425090756,1781481044000,-222.0,0.00019148,2]
[425090761,1781481044000,-357.96077372,0.00019154,2]
[425090745,1781481044000,-151.0,0.00019043,2]
[425090744,1781481044000,-357.96077372,0.00019043,2]
[425090739,1781481044000,-343.69,0.0001895,2]
[425090746,1781481044000,-331.57,0.00019083,2]
[425090740,1781481044000,-500.0,0.00018961,2]
[425090741,1781481044000,-2000.0,0.00018961,2]
[425090743,1781481044000,-151.0,0.00018989,2]
[425090742,1781481044000,-357.96077372,0.00018989,2]
[425090747,1781481044000,-357.96077372,0.00019098,2]
[425090748,1781481044000,-151.0,0.00019098,2]
[425090749,1781481044000,-300.0,0.00019108,2]
[425090751,1781481044000,-165.26064754,0.00019148,2]
[425090750,1781481044000,-448.0,0.00019148,2]
[425090752,1781481044000,-232.0,0.00019148,2]
[425090755,1781481044000,-1877.0,0.00019148,2]
[425090757,1781481044000,-183.0,0.00019148,2]
[425090753,1781481044000,-263.0,0.00019148,2]
[425090754,1781481044000,-607.0,0.00019148,2]
[425090759,1781481044000,-173.0,0.00019148,2]
[425090758,1781481044000,-408.0,0.00019148,2]
[425090760,1781481044000,-260.0,0.00019148,2]
[425090763,1781481044000,-357.96077372,0.00019209,2]
[425090762,1781481044000,-151.0,0.00019154,2]
[425090765,1781481044000,-302.63,0.00019243,2]
[425090791,1781481044000,-331.57,0.00019501,2]
[425090790,1781481044000,-151.0,0.00019483,2]
[425090796,1781481044000,-343.69,0.00019745,2]
[425090821,1781481044000,-151.0,0.0002003,2]
[425090823,1781481044000,-225.18697532,0.0002003,2]
[425090825,1781481044000,-311.42,0.00020061,2]
[425090826,1781481044000,-300.0,0.000201,10]
[425090824,1781481044000,-151.0,0.00020045,2]
[425090822,1781481044000,-2236.95670847,0.0002003,2]
[425090827,1781481044000,-448.0,0.00020148,2]
[425090830,1781481044000,-607.0,0.00020148,2]
[425090829,1781481044000,-263.0,0.00020148,2]
[425090831,1781481044000,-1877.0,0.00020148,2]
[425090833,1781481044000,-183.0,0.00020148,2]
[425090832,1781481044000,-222.0,0.00020148,2]
[425090835,1781481044000,-260.0,0.00020148,2]
[425090834,1781481044000,-408.0,0.00020148,2]
[425090836,1781481044000,-302.63,0.00020205,2]
[425090841,1781481044000,-378.4,0.00020316,2]
[425090838,1781481044000,-164.05381436,0.00020278,7]
[425090842,1781481044000,-1076.3,0.00020381,2]
[425090840,1781481044000,-217.15233878,0.00020303,2]
[425090837,1781481044000,-302.63,0.00020206,2]
[425090839,1781481044000,-289.44574219,0.00020278,7]
[425090843,1781481044000,-341214.15324,0.00020425,2]
[425090793,1781481044000,-496.10252,0.00019573,7]
[425090820,1781481044000,-151.0,0.0002003,2]
[425090819,1781481044000,-263.94580706,0.0002003,2]
[425090828,1781481044000,-232.0,0.00020148,2]
[425090817,1781481044000,-154.62503566,0.0002003,2]
[425090792,1781481044000,-170.42,0.00019571,2]
[425090816,1781481044000,-187.78006524,0.0002003,2]
[425090794,1781481044000,-302.63,0.00019642,2]
[425090795,1781481044000,-305.4,0.00019666,2]
[425090798,1781481044000,-300.0,0.00019849,2]
[425090797,1781481044000,-1594.67,0.000198,2]
[425090799,1781481044000,-264.63749367,0.0001985,2]
[425090801,1781481044000,-302.63,0.00019947,2]
[425090810,1781481044000,-200.0,0.0002,10]
[425090800,1781481044000,-8000.0,0.00019876,7]
[425090805,1781481044000,-2778.47446611,0.0002,2]
[425090807,1781481044000,-171.66,0.0002,8]
[425090809,1781481044000,-899.0,0.0002,2]
[425090812,1781481044000,-150.39523224,0.0002,20]
[425090806,1781481044000,-400.0,0.0002,2]
[425090803,1781481044000,-1404.837484,0.0002,2]
[425090804,1781481044000,-599.0,0.0002,2]
[425090808,1781481044000,-218.0,0.0002,2]
[425090814,1781481044000,-200.0,0.0002003,2]
[425090811,1781481044000,-7222.44,0.0002,2]
[425090813,1781481044000,-200.0,0.0002,2]
[425090818,1781481044000,-225.18697532,0.0002003,2]
[425090802,1781481044000,-2000.0,0.00019948,7]
[425090815,1781481044000,-469.83697307,0.0002003,2]
[425090881,1781481045000,-154.62503566,0.00021125,2]
[425090880,1781481045000,-201.93286098,0.00021125,2]
[425090884,1781481045000,-242.15909246,0.00021125,2]
[425090877,1781481045000,-232.40957034,0.000211,7]
[425090875,1781481045000,-500.0,0.00021028,7]
[425090878,1781481045000,-469.83697307,0.00021125,2]
[425090873,1781481045000,-1885.03151842,0.00021,2]
[425090869,1781481045000,-419.0,0.00020995,2]
[425090879,1781481045000,-200.0,0.00021125,2]
[425090888,1781481045000,-263.0,0.00021148,2]
[425090887,1781481045000,-232.0,0.00021148,2]
[425090896,1781481045000,-306.86,0.00021219,2]
[425090882,1781481045000,-151.0,0.00021125,2]
[425090883,1781481045000,-2405.55389863,0.00021125,2]
[425090885,1781481045000,-346.0,0.00021148,2]
[425090889,1781481045000,-607.0,0.00021148,2]
[425090892,1781481045000,-183.0,0.00021148,2]
[425090897,1781481045000,-180.0,0.0002127,2]
[425090900,1781481045000,-558.41,0.00021273,2]
[425090844,1781481045000,-2003.3501,0.00020425,2]
[425090890,1781481045000,-1877.0,0.00021148,2]
[425090894,1781481045000,-260.0,0.00021148,2]
[425090876,1781481045000,-450.0,0.00021065,7]
[425090886,1781481045000,-448.0,0.00021148,2]
[425090874,1781481045000,-218.0,0.00021,2]
[425090852,1781481045000,-154.62503566,0.00020577,2]
[425090868,1781481045000,-631.0,0.00020995,2]
[425090845,1781481045000,-10000.0,0.00020425,2]
[425090849,1781481045000,-200.0,0.00020577,2]
[425090850,1781481045000,-469.83697307,0.00020577,2]
[425090851,1781481045000,-194.72792766,0.00020577,2]
[425090846,1781481045000,-2000.0,0.00020425,2]
[425090847,1781481045000,-9800.3228,0.00020425,2]
[425090853,1781481045000,-278.30802995,0.00020577,2]
[425090848,1781481045000,-278.89148441,0.00020497,7]
[425090863,1781481045000,-2362.2948834,0.00020888,2]
[425090855,1781481045000,-2319.72410669,0.00020577,2]
[425090854,1781481045000,-151.0,0.00020577,2]
[425090871,1781481045000,-194.234651,0.00020996,7]
[425090864,1781481045000,-1359.0,0.00020995,2]
[425090862,1781481045000,-151.0,0.00020864,2]
[425090860,1781481045000,-278.89148441,0.00020771,7]
[425090858,1781481045000,-185.12,0.00020731,2]
[425090859,1781481045000,-397.55,0.00020733,2]
[425090857,1781481045000,-233.5188934,0.00020577,2]
[425090861,1781481045000,-155.1524515,0.00020811,2]
[425090865,1781481045000,-1275.0,0.00020995,2]
[425090872,1781481045000,-1404.837484,0.00021,2]
[425090866,1781481045000,-383.0,0.00020995,2]
[425090870,1781481045000,-6077.0,0.00020995,2]
[425090867,1781481045000,-1228.0,0.00020995,2]
[425090856,1781481045000,-253.35475079,0.00020577,2]
[425090899,1781481045000,-2862.54,0.00021273,2]
[425090891,1781481045000,-222.0,0.00021148,2]
[425090895,1781481045000,-1885.03151842,0.000212,2]
[425090934,1781481045000,-151.0,0.00021686,2]
[425090933,1781481045000,-151.0,0.00021686,2]
[425090932,1781481045000,-251.11897888,0.00021674,2]
[425090931,1781481045000,-2494.55939288,0.00021674,2]
[425090930,1781481045000,-151.0,0.00021674,2]
[425090939,1781481045000,-1885.03151842,0.000219,2]
[425090937,1781481045000,-500.0,0.00021764,2]
[425090941,1781481045000,-209.8814222,0.000219,2]
[425090936,1781481045000,-151.0,0.00021732,2]
[425090935,1781481045000,-151.0,0.00021686,2]
[425090938,1781481045000,-2000.0,0.00021764,2]
[425090929,1781481045000,-154.62503566,0.00021674,2]
[425090940,1781481045000,-679.41341252,0.000219,2]
[425090942,1781481045000,-5000.0,0.00021918,2]
[425090943,1781481045000,-450.0,0.00021918,8]
[425090945,1781481045000,-172.0,0.00021918,2]
[425090946,1781481045000,-150.0,0.00021918,2]
[425090948,1781481045000,-504.8642125,0.00021999,2]
[425090950,1781481045000,-200000.0,0.00022,2]
[425090949,1781481045000,-200000.0,0.00022,2]
[425090947,1781481045000,-151.0,0.00021997,2]
[425090952,1781481045000,-18292.51454077,0.00022,4]
[425090951,1781481045000,-3605.19614866,0.00022,30]
[425090893,1781481045000,-408.0,0.00021148,2]
[425090944,1781481045000,-3010.07,0.00021918,2]
[425090928,1781481045000,-209.40437684,0.00021674,2]
[425090903,1781481045000,-172.84150483,0.00021279,2]
[425090927,1781481045000,-200.0,0.00021674,2]
[425090898,1781481045000,-6705.42,0.00021271,2]
[425090926,1781481045000,-469.83697307,0.00021674,2]
[425090902,1781481045000,-8284.86,0.00021273,2]
[425090904,1781481045000,-1594.67,0.000213,2]
[425090906,1781481045000,-367.906578,0.00021406,7]
[425090901,1781481045000,-891.21,0.00021273,2]
[425090907,1781481045000,-1000.0,0.0002147,2]
[425090905,1781481045000,-1885.03151842,0.000214,2]
[425090910,1781481045000,-459.5878067,0.00021477,2]
[425090908,1781481045000,-500.0,0.0002147,2]
[425090909,1781481045000,-300.0,0.00021476,2]
[425090912,1781481045000,-226.01758824,0.000215,2]
[425090911,1781481045000,-227513.2626948,0.00021477,2]
[425090915,1781481045000,-58554.23779167,0.000215,2]
[425090924,1781481045000,-151.0,0.00021672,2]
[425090925,1781481045000,-747.80937859,0.00021672,2]
[425090923,1781481045000,-599.60298507,0.00021672,2]
[425090922,1781481045000,-225.18697532,0.00021672,2]
[425090921,1781481045000,-7222.44,0.0002166,2]
[425090914,1781481045000,-300.0,0.000215,7]
[425090913,1781481045000,-1050.0,0.000215,2]
[425090916,1781481045000,-264.63749367,0.00021533,2]
[425090919,1781481045000,-150.0,0.00021645,2]
[425090920,1781481045000,-150.0,0.00021645,2]
[425090918,1781481045000,-150.0,0.00021645,2]
[425090917,1781481045000,-1885.03151842,0.000216,2]
[425090955,1781481047000,-621.23809795,0.00015,2]
[425090954,1781481047000,-90.42812507,0.00015,2]
[425090953,1781481047000,-316.0,0.00015,2]
[425090958,1781481047000,-755.80481717,0.00022,4]
[425090956,1781481047000,-1115.09561194,0.00022,4]
[425090960,1781481047000,-282616.14213849,0.00022,4]
[425090959,1781481047000,-919.39818052,0.00022,4]
[425090961,1781481047000,-2664.57954609,0.00022,4]
[425090962,1781481047000,-56306.45597116,0.00022,4]
[425090957,1781481047000,-600.0,0.00022,4]
[425090967,1781481048000,-9742.77962637,0.00022,4]
[425090966,1781481048000,-466.0,0.00016985,2]